[Event "21st IPCA World Championship 2022"]
[Site "Ashdod"]
[Date "2022.05.13"]
[Round "6.12"]
[White "Volodarsky, Michael"]
[Black "Pilimon, Zbigniew"]
[Result "0-1"]
[ECO "E14"]
[WhiteElo "1400"]
[BlackElo "1620"]
[Annotator "NA RC COMBH"]
[PlyCount "92"]
[EventDate "2022.05.09"]
[EventType "swiss"]
[EventCountry "ISR"]
[SourceTitle "playchess.com"]
[Source "ChessBase"]
[SourceQuality "1"]
[TimeControl "5400+30"]

1. d4 {[%emt 0:36:56]} Nf6 {[%emt 0:00:20]} 2. c4 {[%emt 0:00:01]} e6 {[%emt 0:00:00]} 3. Nc3 {[%emt 0:00:00]} d5 {[%emt 0:00:49]} 4. e3 {[%emt 0:00:00]} Be7 {[%emt 0:00:31]} 5. Nf3 {[%emt 0:00:00]} Nbd7 {[%emt 0:01:36]} 6. cxd5 {[%emt 0:00:00]} exd5 {[%emt 0:00:23]} 7. Bd3 {[%emt 0:00:00]} b6 {[%emt 0:00:44]} 8. O-O {[%emt 0:00:00]} Bb7 {[%emt 0:00:17]} 9. Bd2 {[%emt 0:00:00]} O-O {[%emt 0:00:24]} 10. Rc1 {[%emt 0:00:01]} c5 {[%emt 0:01:11]} 11. Re1 {[%emt 0:00:43]} c4 {[%emt 0:01:05]} 12. Bc2 {[%emt 0:00:07]} a6 {[%emt 0:00:22]} 13. a4 {[%emt 0:00:45]} Ne4 {[%emt 0:00:20]} 14. Nxe4 {[%emt 0:01:12]} dxe4 {[%emt 0:00:04]} 15. Ne5 {[%emt 0:00:03]} b5 {[%emt 0:01:56]} 16. axb5 {[%emt 0:00:23]} axb5 {[%emt 1:28:28]} 17. Qg4 {[%emt 0:02:44]} Nxe5 {[%emt 0:00:30]} 18. dxe5 {[%emt 0:00:27]} Qc8 {[%emt 0:00:00]} 19. Qxc8 {[%emt 0:00:59]} Rfxc8 {[%emt 0:00:00]} 20. Ra1 {[%emt 0:06:05]} b4 {[%emt 0:01:30]} 21. Reb1 {[%emt 0:07:27]} Bc6 {[%emt 0:00:00]} 22. Kf1 {[%emt 0:01:06]} Kf8 {[%emt 0:00:00]} 23. b3 {[%emt 0:03:44]} c3 {[%emt 0:00:00]} 24. Be1 {[%emt 0:00:01]} Bb5+ {[%emt 0:00:00]} 25. Kg1 {[%emt 0:00:05]} Bd3 {[%emt 0:00:00]} 26. Bxd3 {[%emt 0:04:04]} exd3 {[%emt 0:00:00]} 27. Rd1 {[%emt 0:37:07]} d2 {[%emt 0:00:00]} 28. Rxa8 {[%emt 0:00:00]} Rxa8 {[%emt 0:00:00]} 29. Bxd2 {[%emt 0:00:00]} cxd2 {[%emt 0:00:00]} 30. Kf1 {[%emt 0:00:00]} Ra2 {[%emt 0:05:00]} 31. Ke2 {[%emt 0:02:00]} h5 {[%emt 0:00:00]} 32. Kd3 {[%emt 0:00:00]} Ke8 {[%emt 0:00:00]} 33. h3 {[%emt 0:00:00]} g6 {[%emt 0:00:00]} 34. g4 {[%emt 0:00:00]} hxg4 {[%emt 0:00:00]} 35. hxg4 {[%emt 0:00:00]} Bh4 {[%emt 0:00:00]} 36. Ke2 {[%emt 0:00:00]} Ke7 {[%emt 0:00:00]} 37. Kf3 {[%emt 0:03:00]} Ke6 {[%emt 0:03:30]} 38. Rh1 {[%emt 0:00:00]} Rc2 {[%emt 0:00:00]} 39. Rd1 {[%emt 0:00:00]} Kxe5 {[%emt 0:00:00]} 40. Ke2 {[%emt 0:00:00]} Rb2 {[%emt 0:00:00]} 41. f4+ {[%emt 0:00:00]} Ke4 {[%emt 0:00:00]} 42. Rxd2 {[%emt 0:00:00]} Rxd2+ {[%emt 0:00:00]} 43. Kxd2 {[%emt 0:03:00]} Bf2 {[%emt 0:00:00]} 44. f5 {[%emt 0:00:30]} Bxe3+ {[%emt 0:03:30]} 45. Ke2 {[%emt 0:00:00]} g5 {[%emt 0:00:00]} 46. f6 {[%emt 0:01:00]} Bd4 {[%emt 0:00:00]} 0-1